bitfinex/quotes_ETHUSD_20241108
["timestamp","ask_amount","ask_price","bid_price","bid_amount"]
[1731032441801,3.55,2911.2,2909.5,0.7829]
[1731032442949,3.25981458,2910.1,2909.1,1.14018768]
[1731032443098,0.55,2910.0,2909.1,0.7829]
[1731032443429,12.24,2910.3,2909.1,0.7829]
[1731032443630,14.08998146,2910.3,2909.3,0.7852]
[1731032444145,0.55,2910.2,2909.3,0.7852]
[1731032444499,14.08998146,2910.3,2909.3,0.7852]
[1731032445802,12.24,2910.3,2909.3,0.7852]
[1731032447736,12.24,2910.3,2909.4,0.06873642]
[1731032447936,12.24,2910.3,2909.4,0.06873487]
[1731032448111,0.55,2910.6,2909.0,0.8323]
[1731032448834,3.25981458,2910.5,2909.0,0.8323]
[1731032449016,0.93098146,2910.4,2909.0,0.8323]
[1731032449217,0.93098146,2910.4,2909.1,0.8323]
[1731032450111,3.93098146,2910.4,2909.1,0.8323]
[1731032450445,3.0,2910.0,2909.1,0.8323]
[1731032450649,3.55,2910.0,2909.1,0.8323]
[1731032450806,0.55,2909.8,2909.1,0.8323]
[1731032452505,3.55,2909.6,2908.8,0.138776]
[1731032454259,12.24,2909.5,2908.9,0.7651]
[1731032454426,15.24,2910.2,2908.9,0.7651]
[1731032454767,3.0,2910.0,2908.9,0.7651]
[1731032455057,12.24,2910.1,2908.9,0.7651]
[1731032455259,13.8406,2910.1,2908.9,0.7651]
[1731032456563,3.0,2910.0,2908.9,0.7651]
[1731032459274,1.6006,2910.1,2908.9,0.7651]
[1731032459560,3.0,2910.3,2908.9,0.7651]
[1731032460071,12.62098146,2910.4,2909.1,0.7794]
[1731032460240,12.24,2910.4,2909.3,0.7794]
[1731032460568,12.24,2911.2,2909.4,0.06872777]
[1731032460775,12.24,2911.2,2909.1,0.01]
[1731032460776,12.24,2911.2,2909.5,0.8234]
[1731032461075,1.54998146,2911.1,2909.5,0.8234]
[1731032461248,1.54998146,2911.1,2909.7,0.7613]
[1731032461575,12.24,2911.0,2909.9,0.7613]
[1731032461772,12.24,2911.0,2910.1,0.7613]
[1731032462065,1.54998146,2911.1,2910.1,0.7613]
[1731032462270,12.24,2911.3,2910.1,0.7613]
[1731032462485,3.25981458,2910.5,2908.9,0.7799]
[1731032463645,0.55,2910.3,2908.9,0.7799]
[1731032464265,0.55,2910.3,2909.1,0.7776]
[1731032467936,0.8199,2909.7,2908.4,0.8163]
[1731032468141,0.55,2909.1,2908.4,0.8163]
[1731032468369,0.355,2909.0,2908.4,0.8163]
[1731032470148,12.24,2909.3,2908.4,0.8163]
[1731032470348,12.24,2909.3,2908.9,0.7959]
[1731032470793,3.25981458,2909.7,2908.9,0.7959]
[1731032470794,12.24,2909.9,2908.9,0.7959]
[1731032470995,3.25981458,2909.7,2908.9,0.7959]
[1731032471167,0.32598146,2909.6,2908.9,0.7959]
[1731032471482,0.7665,2909.2,2908.6,0.7563]
[1731032471687,0.7665,2909.2,2908.3,0.7563]
[1731032472050,0.55,2909.1,2908.3,0.7563]
[1731032473679,0.55,2908.6,2907.6,0.7921]
[1731032473877,3.25981458,2908.5,2907.6,0.7921]
[1731032474082,1.60498146,2908.4,2907.6,0.7921]
[1731032474590,4.60498146,2908.4,2907.6,0.7921]
[1731032475161,1.60498146,2908.4,2907.6,0.7921]
[1731032478359,4.60498146,2908.4,2907.6,0.7921]
[1731032478990,3.25981458,2908.1,2907.6,0.7921]
[1731032479153,0.32598146,2908.0,2907.6,0.7921]
[1731032480384,3.25981458,2908.9,2907.6,0.7921]
[1731032482111,0.55,2908.7,2907.6,0.7921]
[1731032482327,3.25981458,2908.5,2907.6,0.7921]
[1731032482686,0.55,2908.4,2907.6,0.7921]
[1731032483015,0.55,2908.2,2907.6,0.7921]
[1731032486934,0.38098146,2908.3,2907.6,0.7921]
[1731032487133,12.24,2908.4,2907.6,0.7921]
[1731032487430,12.24,2909.2,2907.6,0.7921]
[1731032487690,1.67637525,2909.2,2907.7,0.7891]
[1731032488172,3.25981458,2908.9,2907.7,0.7891]
[1731032488778,1.67637525,2909.2,2907.7,0.7891]
[1731032489132,4.67637525,2909.2,2907.7,0.7891]
[1731032491850,12.56598146,2909.6,2907.8,0.06876206]
[1731032492038,0.55,2909.5,2907.9,0.7891]
[1731032492345,0.55,2909.5,2908.0,0.7891]
[1731032492529,12.24,2909.6,2908.0,0.7891]
[1731032492737,12.24,2909.6,2908.2,0.7891]
[1731032492968,12.24,2910.0,2908.2,0.7891]
[1731032493166,1.54998146,2909.9,2908.2,0.7891]
[1731032494169,1.54998146,2909.9,2908.3,0.06874849]
[1731032494377,3.25981458,2910.1,2908.4,0.7891]
[1731032494974,0.55,2910.0,2908.4,0.7891]
[1731032495588,3.55,2910.0,2908.4,0.7891]
[1731032495786,3.55,2910.0,2908.2,0.01]
[1731032495787,3.55,2910.0,2908.6,0.7891]
[1731032496079,0.68098146,2909.9,2908.8,0.7891]
[1731032496286,0.68098146,2909.9,2909.0,0.8006]
[1731032497188,3.0,2910.1,2909.2,0.7535]
[1731032499087,3.0,2910.1,2908.6,0.01]
[1731032499088,3.39058338,2910.5,2908.9,0.01]
[1731032499382,3.39058338,2910.5,2909.0,0.7535]
[1731032501551,3.39058338,2910.5,2909.1,0.01]
[1731032501743,3.39058338,2910.5,2909.2,0.7535]
[1731032502392,6.9894563,2910.5,2909.2,0.7535]
[1731032502552,3.25981458,2910.1,2909.2,0.7535]
[1731032502777,3.25981458,2909.7,2909.2,0.7535]
[1731032502977,0.55,2909.6,2909.2,0.7535]
[1731032503809,3.25981458,2909.7,2909.2,0.7535]
[1731032504117,1.54998146,2909.6,2909.2,0.7535]
[1731032504288,0.55,2909.5,2907.9,0.7535]
[1731032505114,3.0,2909.6,2907.9,0.7535]
[1731032505480,3.25981458,2909.7,2907.9,0.7535]
[1731032506999,0.55,2909.8,2907.9,0.7535]
[1731032507317,0.55,2909.9,2907.9,0.7535]
[1731032509338,0.55,2909.6,2907.9,0.7535]
[1731032509495,3.55,2909.6,2907.9,0.7535]
[1731032509824,3.25981458,2909.3,2907.9,0.7535]
[1731032510027,0.32598146,2909.2,2907.9,0.7535]
[1731032510223,0.32598146,2909.2,2908.0,0.89806201]
[1731032510529,0.55,2909.4,2908.0,0.8293]
[1731032510727,3.55,2909.4,2908.0,0.8293]
[1731032511204,3.25981458,2908.9,2908.0,0.8293]
[1731032511525,3.0,2908.8,2908.0,0.8293]
[1731032512113,0.55,2908.7,2908.0,0.8293]
[1731032512334,0.55,2908.5,2908.0,0.8293]
[1731032512626,3.25981458,2908.1,2906.9,0.7944]
[1731032512793,0.55,2908.0,2906.9,0.7944]
[1731032513189,0.55,2907.6,2906.9,0.7944]
[1731032513413,0.55,2907.6,2906.6,0.7482]
[1731032513414,0.55,2907.1,2906.6,0.7482]
[1731032513614,6.80981458,2906.7,2906.6,0.7482]
[1731032513936,3.55,2907.0,2906.6,0.7482]
[1731032514394,0.01,2906.6,2903.9,0.42465794]
[1731032514592,0.01,2906.7,2904.6,3.25981458]
[1731032514793,0.01,2907.3,2905.4,3.25981458]
[1731032515191,0.01,2907.3,2905.5,0.06880393]
[1731032515410,0.02,2907.5,2905.4,3.25981458]
[1731032515625,0.02,2907.5,2905.5,3.06880582]
[1731032515811,0.02,2907.5,2905.5,3.06880549]
[1731032516011,0.02,2907.5,2905.6,0.63286201]
[1731032516390,0.01,2907.3,2905.6,0.63286201]
[1731032516629,0.02,2907.5,2905.6,0.63286201]
[1731032516833,0.01,2907.3,2905.6,0.63286201]
[1731032517126,0.01,2907.1,2905.7,0.06880581]
[1731032517331,0.01,2907.1,2905.6,0.63286201]
[1731032517332,0.01,2907.3,2905.6,0.805]
[1731032517763,0.01,2907.5,2905.6,0.805]
[1731032518237,0.01,2907.3,2905.6,0.805]
[1731032518532,0.01,2907.4,2905.6,0.805]
[1731032518902,3.26981458,2907.5,2905.6,0.805]
[1731032519322,0.01,2907.5,2905.8,0.7861]
[1731032519629,0.01,2907.5,2906.0,0.7861]
[1731032519833,1.291,2907.5,2906.0,0.7861]
[1731032521036,0.01,2907.3,2906.0,0.7861]
[1731032521392,0.55,2907.4,2906.1,0.0688075]
[1731032521637,1.291,2907.5,2906.2,0.8049]
[1731032521822,1.291,2907.5,2906.3,0.06880178]
[1731032522140,1.291,2907.5,2906.2,0.8049]
[1731032522309,3.8025,2907.8,2906.3,0.06880165]
[1731032522494,3.8025,2907.8,2905.9,3.0]
[1731032522495,3.8125,2907.8,2906.0,0.7514]
[1731032522699,0.01,2907.5,2906.0,0.7514]
[1731032522895,0.01,2907.7,2906.2,0.7514]
[1731032523108,3.7925,2907.8,2906.2,0.7514]
[1731032523340,3.7925,2907.8,2906.3,0.06879763]
[1731032523513,3.26981458,2907.9,2906.3,0.06879763]
[1731032523514,3.25981458,2907.9,2906.3,0.7514]
[1731032523896,3.93685438,2907.9,2906.3,0.7514]
[1731032524092,0.01,2907.8,2906.3,0.7514]
[1731032525421,0.01,2907.6,2906.3,0.7514]
[1731032525600,3.56,2907.4,2906.3,0.7514]
[1731032525943,0.01,2907.1,2906.3,0.7514]
[1731032526145,0.01,2907.0,2905.1,0.7632]
[1731032526443,0.01,2907.2,2905.3,0.7632]
[1731032526739,0.01,2907.3,2905.5,0.8289]
[1731032526740,0.01,2907.0,2905.5,0.8289]
[1731032527048,0.01,2907.0,2905.7,0.8289]
[1731032527419,0.01,2907.3,2905.9,0.8289]
[1731032527611,0.01,2907.2,2906.0,0.068809]
[1731032527810,0.802,2907.5,2906.1,0.8024]
[1731032528446,12.26,2907.7,2906.1,0.8024]
[1731032528621,0.01,2907.5,2906.1,0.8024]
[1731032529013,12.26,2907.7,2905.6,0.8024]
[1731032529248,14.25779544,2907.7,2905.9,0.55]
[1731032529412,0.01,2907.5,2906.0,0.8024]
[1731032529605,14.24779544,2907.7,2906.0,0.8024]
[1731032529908,0.01,2907.5,2906.0,0.8024]
[1731032530115,14.24779544,2907.7,2906.0,0.8024]
[1731032530312,1.50388954,2907.6,2906.0,0.8024]
[1731032530514,1.51388954,2907.6,2906.0,0.8024]
[1731032530847,0.01,2907.8,2906.2,0.7562]
[1731032530997,0.6670398,2907.9,2906.3,0.82499072]
[1731032531202,0.6670398,2907.9,2906.3,0.7562]
[1731032531905,3.93685438,2907.9,2906.3,0.7562]
[1731032532107,0.39368544,2907.8,2906.3,0.7562]
[1731032532440,0.01,2907.7,2906.3,0.7562]
[1731032533520,0.8227,2907.6,2906.3,0.7562]
[1731032533718,0.01,2907.0,2906.3,0.7562]
[1731032533937,0.01,2907.1,2906.3,0.7562]
[1731032535744,0.01,2906.3,2905.3,0.7562]
[1731032535945,0.01,2906.1,2905.3,0.7562]
[1731032536112,3.27981458,2906.3,2905.3,0.7562]
[1731032536322,0.01,2906.1,2905.3,0.7562]
[1731032536544,0.56,2906.4,2905.3,0.7562]
[1731032536951,0.45013,2906.4,2905.3,0.7562]
[1731032537451,0.46013,2906.4,2905.3,0.7562]
[1731032537648,0.02,2906.4,2905.3,0.7562]
[1731032537949,0.01,2906.1,2905.3,0.7562]
[1731032542578,3.01,2906.4,2905.3,0.7562]
[1731032542754,0.01,2906.2,2905.3,0.7562]
[1731032542983,0.01,2906.0,2905.3,0.7562]
[1731032543984,0.01,2905.9,2905.3,0.7562]
[1731032544155,0.01,2905.8,2904.3,0.7693]
[1731032544497,0.02,2905.8,2904.3,0.7693]
[1731032544667,0.02,2905.8,2904.4,0.37693]
[1731032544998,0.02,2905.8,2904.5,0.7693]
[1731032545458,0.01,2905.5,2904.5,0.7693]
[1731032545805,3.02,2905.8,2904.5,0.7693]
[1731032546096,0.01,2905.6,2904.5,0.7693]
[1731032546298,0.01,2905.5,2904.5,0.7693]
[1731032546501,0.62798146,2905.7,2904.5,0.7693]
[1731032546659,0.01,2905.5,2904.5,0.7693]
[1731032547192,0.62798146,2905.7,2904.6,0.87514548]
[1731032547399,0.37479815,2905.6,2904.6,0.87514548]
[1731032547560,0.36479815,2905.6,2904.6,0.87514548]
[1731032547982,0.01,2905.5,2904.6,0.87514548]
[1731032548202,0.01,2905.5,2904.6,0.8063]
[1731032548404,0.01,2905.8,2904.6,0.8063]
[1731032548614,0.01,2905.8,2904.7,0.8063]
[1731032548795,0.01,2906.1,2904.7,0.8063]
[1731032548984,0.01,2906.1,2904.8,0.8063]
[1731032548985,0.34798146,2906.1,2904.8,0.8063]
[1731032549197,0.01,2905.9,2904.8,0.8063]
[1731032549501,0.34798146,2906.1,2904.8,0.8063]
[1731032549705,0.01,2906.0,2904.8,0.8063]
[1731032550011,0.01,2905.9,2904.8,0.8063]
[1731032550196,0.01,2905.5,2904.8,0.8063]
[1731032550617,0.01,2905.7,2904.8,0.8063]
[1731032550818,0.301,2905.6,2904.8,0.8063]
[1731032553241,0.01,2905.5,2904.8,0.8063]
[1731032553451,0.301,2905.6,2904.8,0.8063]
[1731032555047,0.01,2905.5,2904.8,0.8063]
[1731032556842,0.02,2905.5,2904.8,0.8063]
[1731032557567,0.01,2904.8,2903.9,0.8196]
[1731032557745,0.01,2905.1,2903.9,0.8196]
[1731032558065,2.66942312,2905.3,2904.0,0.8884551]
[1731032558066,0.01,2905.3,2904.0,0.8884551]
[1731032558606,0.01,2905.3,2904.0,0.8196]
[1731032558854,0.01,2905.3,2904.1,0.38566456]
[1731032559012,0.01,2905.5,2904.2,0.8081]
[1731032559655,0.01,2905.3,2904.2,0.8081]
[1731032559842,0.01,2905.5,2904.2,0.8451456]
[1731032560040,0.27794231,2905.5,2904.4,0.8081]
[1731032560254,0.01,2905.5,2904.4,0.8081]
[1731032560548,0.01,2905.5,2904.6,0.7543]
[1731032560756,0.01,2905.5,2904.7,0.06884608]
[1731032560912,0.01,2905.7,2904.7,0.10589168]
[1731032561248,12.57798146,2906.1,2904.8,0.82314393]
[1731032561552,0.01,2905.9,2904.8,0.7543]
[1731032561911,0.34798146,2906.1,2904.9,0.06883526]
[1731032562110,0.01,2905.9,2904.9,0.82313526]
[1731032562311,0.01,2905.8,2904.9,0.7543]
[1731032562507,0.01,2905.8,2905.0,0.06884064]
[1731032562749,0.01,2905.8,2905.1,0.7543]
[1731032562916,0.01,2905.8,2905.1,0.7913456]
[1731032572632,0.30074046,2906.0,2905.1,0.7913456]
[1731032573918,0.31074046,2906.0,2905.1,0.7913456]
[1731032575358,0.01,2905.8,2905.1,0.0370456]
[1731032575543,0.01,2905.5,2905.1,0.0370456]
[1731032578182,0.01,2905.4,2905.1,0.0370456]
[1731032578984,0.02,2905.6,2905.1,0.0370456]
[1731032579283,0.01,2905.4,2905.1,0.0370456]
[1731032579692,0.34912951,2905.4,2905.1,0.0370456]
[1731032580048,0.33912951,2905.4,2905.1,0.0370456]
[1731032580260,0.01,2905.4,2905.1,0.0370456]
[1731032580490,0.72187196,2905.4,2905.1,0.0370456]
[1731032580986,0.01,2905.4,2905.1,0.0370456]
[1731032581486,0.71187196,2905.5,2905.1,0.0370456]
[1731032581802,0.72187196,2905.6,2905.1,0.0370456]
[1731032582081,1.27159424,2905.6,2905.1,0.0370456]
[1731032582387,0.71187196,2905.5,2905.1,0.0370456]
[1731032583355,0.01,2905.3,2905.1,0.0370456]
[1731032583689,0.71187196,2905.2,2905.1,0.0370456]
[1731032583981,0.88940704,2905.2,2905.1,0.0370456]
[1731032584181,1.23101392,2905.2,2905.1,0.0370456]
[1731032584347,1.25819822,2905.2,2905.1,0.0370456]
[1731032584747,0.89791943,2905.2,2905.1,0.0370456]
[1731032584963,0.17753508,2905.2,2905.1,0.0370456]
[1731032585457,0.89790821,2905.2,2905.1,0.0370456]
[1731032585662,0.90790821,2905.2,2905.1,0.0370456]
[1731032586788,0.18753508,2905.2,2905.1,0.0370456]
[1731032587297,0.90798171,2905.2,2905.1,0.0370456]
[1731032587594,0.18753508,2905.2,2905.1,0.0370456]
[1731032587896,0.90795184,2905.2,2905.1,0.0370456]
[1731032588189,0.18753508,2905.2,2905.1,0.0370456]
[1731032588372,1.26819822,2905.2,2905.1,0.0370456]
[1731032589061,1.37888696,2905.2,2905.1,0.0370456]
[1731032589274,3.61503088,2905.2,2905.1,0.0370456]
[1731032590174,6.63201762,2905.2,2905.1,0.0370456]
[1731032590476,5.66472492,2905.2,2905.1,0.0370456]
[1731032590711,6.98191126,2905.2,2905.1,0.0370456]
[1731032590864,6.62171738,2905.2,2905.1,0.0370456]
[1731032591906,7.53191126,2905.2,2905.1,0.0370456]
[1731032592069,5.73128696,2905.2,2905.1,0.0370456]
[1731032592763,7.53094434,2905.2,2905.1,0.0370456]
[1731032592959,5.73128696,2905.2,2905.1,0.0370456]
[1731032593164,7.53094434,2905.2,2905.1,0.0370456]
[1731032593866,7.53049831,2905.2,2905.1,0.0370456]
[1731032594379,5.73128696,2905.2,2905.1,0.0370456]
[1731032594582,7.53049831,2905.2,2905.1,0.0370456]
[1731032596193,5.73128696,2905.2,2905.1,0.0370456]
[1731032597086,7.16985819,2905.2,2905.1,0.0370456]
[1731032597728,7.1697146,2905.2,2905.1,0.0370456]
[1731032597948,5.73128696,2905.2,2905.1,0.0370456]
[1731032599219,7.16945883,2905.2,2905.1,0.0370456]
[1731032599716,8.00252041,2905.2,2905.1,0.0370456]
[1731032600226,7.16916934,2905.2,2905.1,0.0370456]
[1731032600532,5.61832774,2905.2,2905.1,0.0370456]
[1731032600714,5.72880215,2905.2,2905.1,0.0370456]
[1731032601737,7.16668453,2905.2,2905.1,0.0370456]
[1731032601931,7.52659764,2905.2,2905.1,0.0370456]
[1731032602790,11.11530259,2905.2,2905.1,0.0370456]
[1731032603047,21.5675071,2905.2,2905.1,0.0370456]
[1731032603207,0.01,2904.2,2903.7,0.7942]
[1731032606323,0.01,2904.1,2903.7,0.7942]
[1731032607152,0.01,2904.7,2903.7,0.7942]
[1731032607388,0.01,2904.4,2903.7,0.7942]
[1731032607655,0.01,2904.5,2903.7,0.7942]
[1731032607656,0.01,2904.0,2903.7,0.7942]
[1731032608470,0.02,2904.0,2903.7,0.7942]
[1731032609877,0.02,2904.0,2902.5,3.0]
[1731032609878,0.01938841,2904.0,2902.7,0.7562]
[1731032610039,0.32132725,2904.0,2902.7,0.7562]
[1731032610878,3.01938841,2904.2,2902.9,0.7562]
[1731032611036,0.01,2904.0,2902.9,0.7562]
[1731032611237,3.01938841,2904.2,2902.9,0.7562]
[1731032611535,0.01938841,2904.2,2902.9,0.7562]
[1731032612244,0.27726956,2904.1,2902.9,0.7562]
[1731032613377,0.27726956,2904.1,2902.5,3.0]
[1731032613378,0.00938841,2903.9,2903.1,0.7562]
[1731032613889,0.01938841,2903.9,2903.1,0.7562]
[1731032614031,0.01,2903.7,2903.1,0.7562]
[1731032614235,0.31193884,2903.7,2903.1,0.7562]
[1731032615589,0.30193884,2903.7,2903.1,0.7562]
[1731032615793,2.98075037,2903.7,2903.1,0.7562]
[1731032615993,0.01,2903.2,2902.3,0.7615]
[1731032616200,0.27788115,2903.2,2902.3,0.7615]
[1731032616690,0.26788115,2903.2,2902.3,0.7615]
[1731032617075,0.27788115,2903.2,2902.3,0.7615]
[1731032617301,0.00938841,2903.5,2902.4,0.06890471]
[1731032617455,0.00938841,2903.1,2902.4,0.8095]
[1731032617651,0.01,2903.0,2902.4,0.8095]
[1731032618184,0.00938841,2902.9,2902.4,0.8095]
[1731032619358,0.00938841,2903.1,2902.4,0.8095]
[1731032619595,0.01938841,2903.1,2902.4,0.8095]
[1731032620155,0.00938841,2903.1,2902.4,0.8095]
[1731032620394,0.01,2903.0,2902.4,0.8095]
[1731032620754,0.00938841,2902.8,2902.4,0.8095]
[1731032620957,0.01938841,2903.0,2902.4,0.8095]
[1731032621154,0.28726956,2903.0,2902.4,0.8095]
[1731032621695,0.27726956,2903.0,2902.4,0.8095]
[1731032621901,0.00938841,2903.0,2902.4,0.8095]
[1731032622068,0.01,2902.9,2902.4,0.8095]
[1731032624107,0.00938841,2903.5,2902.4,0.8095]
[1731032624321,0.00938841,2903.9,2902.6,0.7875]
[1731032624653,0.01,2903.7,2902.7,0.06888667]
[1731032624860,0.01,2903.7,2902.8,0.7976]
[1731032625449,0.01938841,2903.7,2902.8,0.7976]
[1731032625661,0.01,2903.7,2902.8,0.7976]
[1731032625963,0.01,2903.7,2903.0,0.7777]
[1731032627732,0.00938841,2903.9,2903.0,0.7777]
[1731032628031,0.01,2903.7,2903.0,0.7777]
[1731032629936,0.00938841,2903.9,2903.0,0.7777]
[1731032630135,0.01,2903.7,2903.0,0.7777]
[1731032631337,0.01,2903.2,2902.3,0.7777]
[1731032631541,0.01938841,2903.2,2902.3,0.7777]
[1731032631854,0.01,2902.8,2902.3,0.7777]
[1731032632055,0.01,2903.0,2902.3,0.7777]
[1731032632352,0.01,2902.8,2902.3,0.7777]
[1731032632568,0.00938841,2903.2,2902.3,0.7777]
[1731032632569,0.01,2903.0,2902.3,0.7777]
[1731032633078,0.01,2903.1,2902.3,0.7777]
[1731032633245,0.01938841,2903.1,2902.3,0.7777]
[1731032634139,0.00938841,2903.1,2902.3,0.7777]
[1731032634748,0.00938841,2903.4,2902.4,0.06890833]
[1731032635088,0.01,2903.5,2902.5,0.7508]
[1731032635382,0.00938841,2903.6,2902.6,0.7508]
[1731032637257,0.01,2903.7,2902.7,0.06889717]
[1731032637458,0.27788115,2903.7,2902.8,0.7798]
[1731032638155,0.01,2903.7,2902.8,0.7798]
[1731032639259,0.01,2903.7,2902.9,0.8207]
[1731032639991,0.00938841,2903.8,2902.9,0.8207]
[1731032640197,0.01,2903.7,2902.9,0.8207]
[1731032640399,0.01938841,2903.9,2902.9,0.8207]
[1731032640696,0.01,2903.7,2902.9,0.8207]
[1731032640995,0.00938841,2903.6,2902.9,0.8207]
[1731032641374,0.01,2903.7,2902.9,0.8207]
[1731032641991,0.00938841,2903.5,2902.9,0.8207]
[1731032642197,0.01,2903.7,2902.9,0.8207]
[1731032642198,0.01938841,2903.7,2902.9,0.8207]
[1731032642359,0.01,2903.4,2902.9,0.8207]
[1731032643172,3.37827659,2903.9,2902.9,0.8207]
[1731032643173,0.01,2903.6,2902.9,0.8207]
[1731032644465,0.01938841,2903.6,2902.9,0.8207]
[1731032644668,0.01,2903.6,2902.9,0.8207]
[1731032645384,0.00938841,2903.8,2902.9,0.8207]
[1731032645625,0.01,2903.7,2902.9,0.8207]
[1731032646207,0.00938841,2903.6,2902.9,0.8207]
[1731032646389,0.00938841,2903.4,2902.9,0.8207]
[1731032646562,0.27626956,2903.4,2902.9,0.8207]
[1731032646762,0.26688115,2903.4,2902.9,0.8207]
[1731032646994,0.00938841,2903.6,2902.9,0.8207]
[1731032647698,0.01,2903.7,2902.9,0.8207]
[1731032649009,0.01,2903.4,2902.9,0.8207]
[1731032649157,0.01,2903.3,2902.9,0.8207]
[1731032650100,0.72885347,2903.5,2902.9,0.8207]
[1731032650431,0.01,2903.3,2902.9,0.8207]
[1731032651294,0.01938841,2903.3,2902.9,0.8207]
[1731032651602,0.73824188,2903.3,2902.9,0.8207]
[1731032652222,0.18165221,2903.2,2902.9,0.8207]
[1731032652389,0.73824188,2903.3,2902.9,0.8207]
[1731032653930,0.00938841,2903.0,2902.9,0.8207]
[1731032654288,0.00938841,2903.2,2902.9,0.8207]
[1731032655790,0.72885347,2903.3,2902.9,0.8207]
[1731032656207,0.01,2903.3,2902.9,0.8207]
[1731032656405,0.19165221,2903.3,2902.9,0.8207]
[1731032656729,0.01,2903.3,2902.9,0.8207]
[1731032657142,0.00938841,2903.2,2902.9,0.8207]
[1731032657437,0.00938841,2902.8,2902.3,0.7763]
[1731032657746,0.01,2902.7,2902.3,0.7763]
[1731032659128,0.00938841,2902.8,2902.3,0.7763]
[1731032659295,0.01,2902.7,2902.3,0.7763]
[1731032659495,0.01,2902.9,2902.3,0.7763]
[1731032659706,0.01,2902.7,2902.3,0.7763]
[1731032659937,0.48165221,2902.9,2902.3,0.7763]
[1731032660092,0.73764478,2903.0,2902.3,0.7763]
[1731032660300,0.01,2902.9,2902.3,0.7763]
[1731032660808,0.00938841,2902.8,2902.3,0.7763]
[1731032661014,0.01,2902.7,2902.3,0.7763]
[1731032661211,0.00938841,2902.8,2902.3,0.7763]
[1731032661397,0.01,2902.7,2902.3,0.7763]
[1731032662343,0.01,2902.9,2902.3,0.7763]
[1731032663011,0.00938841,2903.0,2902.3,0.7763]
[1731032663239,0.01,2902.9,2902.3,0.7763]
[1731032663447,0.01,2903.1,2902.3,0.7763]
[1731032663903,0.01,2902.7,2902.3,0.7763]
[1731032664241,0.01938841,2902.7,2902.3,0.7763]
[1731032666096,0.01938841,2903.1,2902.3,0.7763]
[1731032667031,1.09766861,2903.4,2902.3,0.7763]
[1731032667197,0.00938841,2903.2,2902.4,0.8299]
[1731032667800,0.01938841,2903.4,2902.4,0.8299]
[1731032669119,1.0882802,2903.6,2902.5,0.06890357]
[1731032669319,0.01,2903.6,2902.6,0.8299]
[1731032670224,0.72725915,2903.5,2902.6,0.8299]
[1731032670915,0.72787074,2903.4,2902.6,0.8299]
[1731032671102,0.01,2903.4,2902.6,0.8299]
[1731032671507,0.72787074,2903.4,2902.6,0.8299]
[1731032671703,0.01,2903.4,2902.6,0.8299]
[1731032672317,0.01,2903.2,2902.6,0.8299]
[1731032674157,0.01938841,2903.2,2902.6,0.8299]
[1731032676320,0.01,2903.2,2902.6,0.8299]
[1731032677730,0.72787074,2903.2,2902.6,0.8299]
[1731032679249,0.00938841,2902.8,2902.6,0.8299]
[1731032679445,0.00938841,2902.8,2902.3,0.7522]
[1731032679831,0.01938841,2902.8,2902.3,0.7522]
[1731032680051,0.00938841,2902.8,2902.3,0.7522]
[1731032680257,0.01938841,2902.8,2902.3,0.7522]
[1731032681054,0.72787074,2903.0,2902.3,0.7522]
[1731032681256,0.01,2903.0,2902.3,0.7522]
[1731032681461,0.01,2902.8,2902.3,0.7522]
[1731032682963,0.72787074,2903.0,2902.3,0.7522]
[1731032683256,0.01,2903.0,2902.3,0.7522]
[1731032683455,0.72787074,2903.0,2902.3,0.7522]
[1731032683666,0.72787074,2903.2,2902.3,0.7522]
[1731032683835,1.54337074,2903.1,2902.3,0.7522]
[1731032684162,1.81686309,2903.1,2902.3,0.7522]
[1731032684563,1.09899235,2903.1,2902.3,0.7522]
[1731032684858,1.81686309,2903.1,2902.3,0.7522]
[1731032685268,0.72787074,2903.2,2902.3,0.7522]
[1731032685630,0.71787074,2903.1,2902.3,0.7522]
[1731032686050,0.72725915,2903.1,2902.3,0.7522]
[1731032686254,0.72787074,2902.9,2902.3,0.7522]
[1731032687764,0.72787074,2902.9,2902.2,0.1345844]
[1731032687765,0.01,2902.5,2902.2,0.1345844]
[1731032692967,0.01938841,2902.5,2902.2,0.1345844]
[1731032693629,0.01,2902.5,2902.2,0.1345844]
[1731032694269,0.01938841,2902.5,2902.2,0.1345844]
[1731032696685,0.71787074,2902.7,2902.3,0.7803]
[1731032696884,0.72725915,2902.8,2902.3,0.7803]
[1731032697048,0.01,2902.7,2902.3,0.7803]
[1731032701076,0.00938841,2902.8,2902.3,0.7803]
[1731032701461,0.72725915,2903.0,2902.3,0.7803]
[1731032701665,0.01,2902.9,2902.3,0.7803]
[1731032701855,0.00938841,2903.0,2902.3,0.7803]
[1731032702190,0.01,2902.9,2902.3,0.7803]
[1731032703488,0.72787074,2902.9,2902.3,0.7803]
[1731032703648,0.01,2902.9,2902.3,0.7803]
[1731032703851,0.71787074,2902.9,2902.3,0.7803]
[1731032704095,0.72787074,2903.3,2902.4,0.06890614]
[1731032704388,0.71787074,2903.4,2902.4,0.8015]
[1731032704706,0.00938841,2903.3,2902.4,0.8015]
[1731032704993,0.73725915,2903.1,2902.4,0.8015]
[1731032705661,0.01,2903.1,2902.4,0.8015]
[1731032705865,0.72787074,2903.2,2902.4,0.8015]
[1731032706578,0.01,2903.2,2902.4,0.8015]
[1731032707589,0.01,2903.4,2902.4,0.8015]
[1731032707774,0.01,2903.4,2902.3,0.7868]
[1731032707979,0.72787074,2903.4,2902.3,0.7868]
[1731032708156,0.00938841,2903.3,2902.3,0.7868]